bitfinex-derivatives/quotes_BTCF0:USTF0_20210406
["timestamp","ask_amount","ask_price","bid_price","bid_amount"]
[1617710063462,0.35848264,58432.0,58430.0,0.3219]
[1617710063864,0.35845178,58433.0,58431.0,0.30165844]
[1617710064263,0.35845178,58433.0,58432.0,0.10725655]
[1617710064462,0.35845178,58433.0,58432.0,0.37725655]
[1617710064962,0.35845178,58433.0,58432.0,0.42905655]
[1617710067262,0.35845178,58433.0,58432.0,0.37725655]
[1617710069377,0.79601838,58433.0,58432.0,0.37725655]
[1617710070968,0.06606893,58434.0,58432.0,0.37725655]
[1617710071269,0.86435125,58433.0,58432.0,0.37725655]
[1617710071768,0.79554206,58433.0,58432.0,0.42925655]
[1617710072570,0.35800387,58433.0,58432.0,0.42925655]
[1617710073268,0.06880696,58434.0,58432.0,0.54028655]
[1617710073470,0.42684582,58433.0,58432.0,0.54028655]
[1617710073769,0.42684582,58433.0,58432.0,0.48828655]
[1617710073970,0.50707074,58434.0,58432.0,0.48828655]
[1617710074371,0.42751777,58433.0,58432.0,0.48828655]
[1617710074575,0.42751777,58433.0,58432.0,0.53908655]
[1617710075172,0.35805018,58433.0,58432.0,0.53908655]
[1617710076473,0.35805018,58433.0,58432.0,0.42805655]
[1617710077175,0.35805018,58433.0,58432.0,0.37725655]
[1617710078676,0.35805018,58433.0,58432.0,0.42855655]
[1617710078877,0.79557558,58433.0,58432.0,0.37725655]
[1617710079576,0.35805018,58433.0,58432.0,0.51198655]
[1617710079778,0.43285873,58433.0,58432.0,0.51198655]
[1617710080277,0.35805018,58433.0,58432.0,0.51198655]
[1617710080685,0.43287793,58433.0,58432.0,0.51198655]
[1617710080975,0.35805018,58433.0,58432.0,0.51198655]
[1617710081976,0.35805018,58433.0,58432.0,3.57908655]
[1617710082178,0.35805018,58433.0,58432.0,5.07908655]
[1617710082379,0.35805018,58433.0,58432.0,5.27908655]
[1617710082579,0.37327872,58433.0,58432.0,5.27908655]
[1617710082977,0.30157872,58433.0,58432.0,5.27908655]
[1617710083178,0.03632854,58433.0,58432.0,2.51371409]
[1617710083478,0.4380259,58438.0,58432.0,3.51371409]
[1617710083780,0.52123937,58440.0,58438.0,1.7]
[1617710083978,0.43820558,58442.0,58438.0,1.7]
[1617710084178,0.43820558,58442.0,58438.0,1.97]
[1617710084379,0.41280558,58442.0,58441.0,0.10725655]
[1617710084579,0.1281,58445.0,58441.0,0.10725655]
[1617710084778,0.1281,58445.0,58442.0,0.051]
[1617710085081,0.0505,58444.0,58442.0,0.051]
[1617710085279,0.1281,58445.0,58443.0,0.27]
[1617710087483,0.1281,58445.0,58442.0,0.27]
[1617710087883,0.1281,58445.0,58444.0,0.20938527]
[1617710088084,0.1281,58445.0,58444.0,0.14179]
[1617710088484,0.1281,58445.0,58444.0,0.35179]
[1617710090791,0.1281,58445.0,58444.0,1.90369]
[1617710090990,0.1281,58445.0,58444.0,1.85179]
[1617710094999,0.1281,58445.0,58444.0,0.35179]
[1617710095201,0.10725655,58447.0,58444.0,0.21]
[1617710095502,0.10725655,58447.0,58442.0,0.27]
[1617710095899,0.10725655,58447.0,58445.0,0.27]
[1617710096301,0.10725655,58447.0,58442.0,0.27]
[1617710096501,0.10725655,58447.0,58441.0,0.10725655]
[1617710096502,0.10725655,58447.0,58446.0,0.27]
[1617710096709,0.10725655,58447.0,58446.0,0.322]
[1617710096911,0.10725655,58447.0,58446.0,0.052]
[1617710097103,0.10725655,58447.0,58446.0,0.322]
[1617710097402,0.60555161,58447.0,58446.0,0.052]
[1617710097901,0.60555161,58447.0,58446.0,0.322]
[1617710098705,0.10725655,58447.0,58446.0,0.322]
[1617710099201,0.60542737,58447.0,58446.0,0.322]
[1617710099401,0.60542737,58447.0,58446.0,0.27]
[1617710099802,0.60542737,58447.0,58442.0,0.27]
[1617710100202,0.60542737,58447.0,58446.0,0.27]
[1617710100403,0.60542737,58447.0,58446.0,0.051]
[1617710100804,0.60542737,58447.0,58446.0,0.321]
[1617710101605,0.60542737,58447.0,58446.0,0.27]
[1617710102005,0.60542737,58447.0,58442.0,0.27]
[1617710102406,0.60542737,58447.0,58446.0,0.27]
[1617710102609,0.60542737,58447.0,58442.0,0.27]
[1617710103007,0.60542737,58447.0,58446.0,0.27]
[1617710103208,0.60542737,58447.0,58442.0,0.27]
[1617710103507,0.60542737,58447.0,58446.0,0.27]
[1617710103908,0.60542737,58447.0,58446.0,2.6249]
[1617710104109,0.10725655,58447.0,58446.0,2.6249]
[1617710104408,0.10725655,58447.0,58446.0,2.8949]
[1617710104609,0.54608622,58447.0,58446.0,2.8949]
[1617710108613,0.90513906,58447.0,58446.0,2.8949]
[1617710109414,0.96575077,58447.0,58446.0,2.8949]
[1617710109613,0.96575077,58447.0,58446.0,2.9457]
[1617710109814,0.96575077,58447.0,58446.0,2.8949]
[1617710111818,0.96575077,58447.0,58446.0,2.9469]
[1617710115323,0.96575077,58447.0,58446.0,2.8949]
[1617710116226,0.96575077,58447.0,58446.0,2.9455]
[1617710116925,0.96575077,58447.0,58446.0,2.8949]
[1617710117626,0.96575077,58447.0,58446.0,0.27]
[1617710118028,0.96575077,58447.0,58444.0,0.57212088]
[1617710118228,0.96575077,58447.0,58444.0,0.27]
[1617710118229,0.90513906,58447.0,58444.0,0.27]
[1617710118434,0.90513906,58447.0,58445.0,0.27]
[1617710118630,0.06061121,58446.0,58444.0,0.27]
[1617710119128,0.06061121,58446.0,58442.0,0.30218041]
[1617710119430,0.06061121,58446.0,58445.0,0.27]
[1617710119628,0.06061121,58446.0,58444.0,0.27]
[1617710119828,0.06061121,58446.0,58442.0,0.30218041]
[1617710120028,0.85888071,58446.0,58443.0,0.27]
[1617710120328,0.06061121,58446.0,58445.0,0.27]
[1617710120528,0.06061121,58446.0,58444.0,0.27]
[1617710120829,0.85894324,58446.0,58443.0,0.27]
[1617710121036,0.85894324,58446.0,58442.0,0.30218041]
[1617710121231,0.06061121,58446.0,58445.0,0.27]
[1617710121630,0.06061121,58446.0,58443.0,0.57217335]
[1617710121631,0.85915581,58446.0,58444.0,0.30216717]
[1617710121832,0.85915581,58446.0,58444.0,0.57216717]
[1617710122030,0.85915581,58446.0,58444.0,0.30216717]
[1617710122231,0.798599,58445.0,58444.0,0.30216717]
[1617710122632,0.798599,58445.0,58443.0,0.30217126]
[1617710122831,0.798599,58445.0,58444.0,0.27]
[1617710123031,0.798599,58445.0,58443.0,0.30217126]
[1617710123232,0.79939416,58444.0,58443.0,0.57217126]
[1617710123531,0.86000404,58444.0,58443.0,0.30217126]
[1617710123733,0.86000404,58444.0,58443.0,0.57217126]
[1617710123932,0.79939416,58444.0,58443.0,0.57217126]
[1617710125236,0.4396568,58444.0,58443.0,0.57217126]
[1617710128940,0.4396568,58444.0,58443.0,0.72335126]
[1617710132546,0.4396568,58444.0,58443.0,0.57217126]
[1617710133752,0.49998338,58446.0,58443.0,0.57217126]
[1617710133951,0.44008572,58444.0,58443.0,0.73183126]
[1617710135761,0.44008572,58444.0,58443.0,1.09466102]
[1617710138255,0.44054446,58445.0,58443.0,1.09466102]
[1617710139155,0.44054446,58445.0,58444.0,0.72578013]
[1617710139556,0.44054446,58445.0,58444.0,0.99578013]
[1617710139958,0.44054446,58445.0,58444.0,1.44017998]
[1617710140458,0.44054446,58445.0,58444.0,0.93516716]
[1617710140958,0.44054446,58445.0,58444.0,0.99578146]
[1617710142259,0.94199232,58445.0,58444.0,0.99578146]
[1617710142658,0.94199232,58445.0,58444.0,1.04728146]
[1617710142958,0.94199232,58445.0,58444.0,0.99578146]
[1617710143961,0.44054446,58445.0,58444.0,0.99578146]
[1617710144563,0.44054446,58445.0,58444.0,1.04768146]
[1617710144864,0.44054446,58445.0,58444.0,0.99578146]
[1617710146164,0.49114446,58445.0,58444.0,4.40998146]
[1617710146363,0.44054446,58445.0,58444.0,4.40998146]
[1617710147168,0.44054446,58445.0,58444.0,4.85424119]
[1617710150870,0.44054446,58445.0,58444.0,6.35424119]
[1617710151271,0.44054446,58445.0,58444.0,7.35424119]
[1617710151475,0.4424587,58450.0,58444.0,8.05865338]
[1617710151975,0.44246991,58452.0,58449.0,1.10952108]
[1617710152176,0.44246991,58452.0,58450.0,1.7]
[1617710152374,0.4426783,58456.0,58451.0,3.72206785]
[1617710152573,0.4426783,58456.0,58452.0,1.7]
[1617710152875,0.44340941,58465.0,58459.0,1.7]
[1617710153275,0.44374772,58472.0,58459.0,1.97]
[1617710153473,0.44374772,58472.0,58465.0,1.5]
[1617710153674,0.44374772,58472.0,58471.0,2.5]
[1617710153876,0.44372305,58475.0,58471.0,3.8081672]
[1617710154277,0.42782305,58475.0,58471.0,3.0781672]
[1617710154478,0.44371389,58476.0,58471.0,3.6421935]
[1617710154679,0.44371389,58476.0,58474.0,1.0]
[1617710154881,0.1281,58478.0,58475.0,0.10725655]
[1617710155077,0.1281,58478.0,58475.0,0.37725655]
[1617710155279,0.1281,58478.0,58476.0,1.5]
[1617710155479,0.1281,58478.0,58476.0,1.61047]
[1617710155679,0.1281,58478.0,58477.0,3.43443347]
[1617710156080,0.1281,58478.0,58477.0,3.58585058]
[1617710157184,0.1281,58478.0,58477.0,2.58585058]
[1617710157385,0.61145446,58485.0,58477.0,2.58585058]
[1617710157982,0.61145446,58485.0,58484.0,0.66414724]
[1617710158383,0.61145446,58485.0,58484.0,0.93414724]
[1617710158882,0.61145446,58485.0,58484.0,1.04140379]
[1617710159085,0.61145446,58485.0,58484.0,1.10197036]
[1617710159484,0.61145446,58485.0,58484.0,4.70917036]
[1617710160285,0.10725655,58485.0,58484.0,4.70917036]
[1617710160484,0.10725655,58485.0,58484.0,4.49357036]
[1617710162289,0.10725655,58485.0,58484.0,0.37725655]
[1617710162686,0.10725655,58485.0,58484.0,1.87725655]
[1617710162986,0.1281,58493.0,58484.0,3.07725655]
[1617710163386,0.1281,58493.0,58487.0,1.5]
[1617710163686,0.1281,58493.0,58490.0,1.0]
[1617710163887,0.1281,58493.0,58491.0,2.5]
[1617710164387,0.1281,58493.0,58491.0,2.77]
[1617710164789,0.1281,58493.0,58492.0,0.10725655]
[1617710164987,0.10725655,58500.0,58492.0,0.10725655]
[1617710165188,0.10725655,58500.0,58492.0,0.37725655]
[1617710165389,0.10725655,58500.0,58492.0,1.87725655]
[1617710165791,0.10725655,58500.0,58493.0,1.0]
[1617710166090,0.07295655,58500.0,58496.0,1.5]
[1617710166290,5.655e-05,58500.0,58496.0,1.5]
[1617710166490,5.655e-05,58500.0,58496.0,1.77]
[1617710166690,0.1281,58509.0,58496.0,1.77]
[1617710166889,0.1281,58509.0,58499.0,0.10725655]
[1617710167090,0.1281,58509.0,58500.0,0.27]
[1617710168791,0.10725655,58501.0,58500.0,0.27]
[1617710171196,0.1281,58509.0,58500.0,0.27]
[1617710172996,0.1281,58509.0,58508.0,0.10725655]
[1617710173597,0.1281,58509.0,58508.0,0.37725655]
[1617710174598,0.56809359,58509.0,58508.0,0.37725655]
[1617710174898,0.56809359,58509.0,58508.0,4.02855655]
[1617710175800,0.1281,58509.0,58508.0,4.02855655]
[1617710180508,0.1281,58509.0,58508.0,0.37725655]
[1617710180709,1.1281,58509.0,58508.0,0.37725655]
[1617710180909,4.4903,58509.0,58508.0,0.37725655]
[1617710183209,0.43857648,58511.0,58508.0,0.37725655]
[1617710183410,0.43857648,58511.0,58508.0,3.62025655]
[1617710183710,0.43856493,58512.0,58508.0,3.62025655]
[1617710184310,0.43855612,58513.0,58508.0,3.62025655]
[1617710184511,0.54580257,58514.0,58508.0,3.62025655]
[1617710185510,0.43854015,58513.0,58508.0,3.62025655]
[1617710187412,0.10725655,58514.0,58508.0,3.62025655]
[1617710189616,0.54574138,58514.0,58508.0,3.62025655]
[1617710191720,0.10725655,58514.0,58508.0,3.62025655]
[1617710193524,0.54572839,58514.0,58508.0,3.62025655]
[1617710194127,0.10725655,58514.0,58508.0,3.62025655]
[1617710200632,0.43942661,58512.0,58508.0,3.62025655]
[1617710200934,0.43943279,58509.0,58508.0,0.37725655]
[1617710203934,0.43942085,58512.0,58508.0,3.22765655]
[1617710204134,0.43942085,58512.0,58508.0,3.34640655]
[1617710204435,0.43942173,58513.0,58508.0,3.34640655]
[1617710205636,0.10725655,58514.0,58508.0,3.34640655]
[1617710205637,0.43942161,58512.0,58508.0,3.34640655]
[1617710208644,0.43942027,58513.0,58508.0,3.34640655]
[1617710209542,0.43942388,58512.0,58508.0,3.34640655]
[1617710209741,1.43943246,58511.0,58508.0,3.34640655]
[1617710209941,1.43943246,58511.0,58508.0,3.22765655]
[1617710210241,0.43977963,58509.0,58508.0,3.22765655]
[1617710211243,1.50692793,58509.0,58508.0,3.22765655]
[1617710212642,0.94315717,58509.0,58508.0,3.22765655]
[1617710213145,1.5069186,58509.0,58508.0,3.22765655]
[1617710213544,0.94315717,58509.0,58508.0,3.22765655]
[1617710214347,0.99395717,58509.0,58508.0,3.22765655]
[1617710214945,0.94315717,58509.0,58508.0,3.22765655]
[1617710216349,0.94315717,58509.0,58508.0,3.32585655]
[1617710217147,0.94315717,58509.0,58508.0,0.47545655]
[1617710217348,0.94315717,58509.0,58508.0,0.37725655]
[1617710218249,1.50691693,58509.0,58508.0,0.37725655]
[1617710218451,1.66092693,58509.0,58508.0,0.27]
[1617710218653,7.73842693,58509.0,58508.0,0.27]
[1617710218853,7.73842693,58509.0,58499.0,0.27]
[1617710219053,6.65909964,58509.0,58499.0,0.27]
[1617710219252,0.10725655,58500.0,58499.0,0.10725655]
[1617710219755,1.05375032,58500.0,58499.0,0.10725655]
[1617710219956,2.05375032,58500.0,58499.0,0.37725655]
[1617710220461,1.05375032,58500.0,58499.0,0.37725655]
[1617710222356,3.89585032,58500.0,58499.0,0.37725655]
[1617710222758,4.4601843,58500.0,58499.0,0.37725655]
[1617710223058,4.4601843,58500.0,58499.0,0.42835655]
[1617710223259,4.59487573,58500.0,58499.0,0.37725655]
[1617710225160,1.75277573,58500.0,58499.0,3.59745655]
[1617710225560,1.6180843,58500.0,58499.0,3.59745655]
[1617710226461,1.51082775,58500.0,58499.0,3.70032655]
[1617710226764,0.94649377,58500.0,58499.0,3.70032655]
[1617710232771,0.94649377,58500.0,58499.0,3.59745655]
[1617710236779,0.94649377,58500.0,58499.0,3.73819655]
[1617710238480,0.94649377,58500.0,58499.0,3.78999655]
[1617710238680,0.94649377,58500.0,58499.0,3.73819655]
[1617710240581,0.94649377,58500.0,58499.0,3.59745655]
[1617710242285,0.94649377,58500.0,58499.0,3.74301655]
[1617710244389,0.94649377,58500.0,58499.0,0.52281655]
[1617710244891,0.94649377,58500.0,58499.0,0.37725655]
[1617710245091,0.94649377,58500.0,58499.0,0.48880655]
[1617710247093,0.99829377,58500.0,58499.0,0.48880655]
[1617710247995,0.94649377,58500.0,58499.0,0.48880655]
[1617710256407,0.94649377,58500.0,58499.0,0.79052385]
[1617710256608,0.94649377,58500.0,58499.0,0.84202385]
[1617710256810,0.94649377,58500.0,58499.0,0.79052385]
[1617710258319,0.94649377,58500.0,58499.0,0.48880655]
[1617710259210,0.94649377,58500.0,58499.0,0.79065809]
[1617710260011,0.94649377,58500.0,58499.0,0.84265809]
[1617710260212,0.94649377,58500.0,58499.0,0.79065809]
[1617710261414,0.94649377,58500.0,58499.0,1.15274398]
[1617710262916,0.94649377,58500.0,58499.0,0.79065809]
[1617710263914,0.99819377,58500.0,58499.0,0.79065809]
[1617710265017,0.99819377,58500.0,58499.0,1.15275313]
[1617710265317,0.94649377,58500.0,58499.0,1.35275313]
[1617710265520,0.44304606,58500.0,58499.0,2.15275313]
[1617710265717,0.44304606,58500.0,58499.0,1.15275313]
[1617710265919,0.44304606,58500.0,58499.0,2.65275313]
[1617710266118,0.44304606,58500.0,58499.0,3.85275313]
[1617710266519,0.70527863,58522.0,58499.0,3.85275313]
[1617710266520,0.44334704,58501.0,58499.0,4.29427564]
[1617710266818,0.44334704,58501.0,58499.0,3.29427564]
[1617710267020,0.44334162,58503.0,58501.0,1.7]
[1617710267219,0.44334162,58503.0,58501.0,1.97]
[1617710267420,0.44333233,58504.0,58502.0,1.0]
[1617710267621,0.44333233,58504.0,58503.0,0.2]
[1617710267821,0.0505,58525.0,58503.0,0.2]
[1617710267822,0.44332059,58505.0,58503.0,1.47]
[1617710268222,0.44332059,58505.0,58504.0,1.16350013]
[1617710268522,0.44332059,58505.0,58504.0,1.43350013]
[1617710268923,0.44332059,58505.0,58504.0,1.63350013]
[1617710269524,0.44332059,58505.0,58504.0,1.1923133]
[1617710270023,0.44332059,58505.0,58504.0,3.6923133]
[1617710270428,0.43575037,58511.0,58504.0,3.6923133]
[1617710270927,0.69080944,58526.0,58504.0,3.6923133]
[1617710270928,0.50242861,58518.0,58509.0,1.0]
[1617710271224,0.50242861,58518.0,58510.0,0.27]
[1617710271425,0.50242861,58518.0,58510.0,1.27]
[1617710271624,0.50242861,58518.0,58517.0,0.10725655]
[1617710271826,0.502423,58519.0,58517.0,0.26709655]
[1617710272026,0.502423,58519.0,58517.0,0.53709655]
[1617710272528,0.50242996,58518.0,58517.0,0.53709655]
[1617710274529,0.1281,58526.0,58517.0,0.53709655]
[1617710274530,0.50240522,58520.0,58517.0,0.53709655]
[1617710276232,0.50240522,58520.0,58517.0,2.03709655]
[1617710276431,0.50240522,58520.0,58519.0,1.0]
[1617710276832,0.50237813,58524.0,58519.0,1.27]
[1617710277131,0.50237813,58524.0,58521.0,1.0]
[1617710277431,0.50237439,58525.0,58523.0,1.0]
[1617710277631,0.50237439,58525.0,58524.0,0.10725655]
[1617710278233,0.50237439,58525.0,58524.0,0.37725655]
[1617710278634,0.50237439,58525.0,58524.0,0.42835655]
[1617710279034,0.50237439,58525.0,58524.0,0.37725655]
[1617710280137,0.50237439,58525.0,58524.0,0.42775655]
[1617710280537,0.50237132,58526.0,58524.0,0.37725655]
[1617710280948,0.50236936,58527.0,58524.0,0.37725655]
[1617710281740,0.50135132,58530.0,58524.0,0.37725655]
[1617710284043,0.50135265,58531.0,58524.0,0.37725655]
[1617710285145,0.50135183,58530.0,58524.0,0.37725655]
[1617710286048,0.50135164,58529.0,58524.0,0.37725655]
[1617710289448,1.0,58526.0,58524.0,0.37725655]
[1617710289649,0.50135311,58528.0,58524.0,0.37725655]
[1617710289952,0.50137328,58526.0,58524.0,0.37725655]
[1617710290349,0.50134529,58527.0,58524.0,0.37725655]
[1617710290955,0.44119618,58525.0,58524.0,0.37725655]
[1617710293253,0.44119618,58525.0,58524.0,0.42915655]
[1617710293453,0.44119618,58525.0,58524.0,0.37725655]
[1617710296359,0.44119207,58526.0,58524.0,0.37725655]
[1617710296558,0.44119207,58526.0,58524.0,0.50765655]
[1617710297058,0.44119286,58525.0,58524.0,0.50765655]
[1617710298559,0.44119336,58526.0,58524.0,0.50765655]
[1617710299362,0.44119336,58526.0,58525.0,3.382]
[1617710299661,0.44119336,58526.0,58525.0,3.652]
[1617710299863,0.1281,58540.0,58525.0,3.652]
[1617710299864,0.44118689,58527.0,58525.0,3.652]
[1617710301067,0.44118689,58527.0,58525.0,0.27]
[1617710302867,0.44113168,58526.0,58525.0,0.27]
[1617710304468,0.44111126,58528.0,58525.0,0.27]
[1617710306170,0.09445118,58539.0,58525.0,0.27]
[1617710306171,0.44110806,58529.0,58525.0,0.27]
[1617710307570,0.4416415,58527.0,58525.0,0.27]
[1617710308874,0.4416415,58527.0,58525.0,1.27]
[1617710309073,0.50185165,58533.0,58525.0,1.27]
[1617710309576,0.50187818,58534.0,58525.0,1.27]
[1617710309774,0.50187818,58534.0,58533.0,0.10725655]
[1617710310173,0.50187818,58534.0,58533.0,0.37725655]
[1617710311677,0.50186643,58535.0,58533.0,0.37725655]
[1617710312779,0.50174604,58536.0,58533.0,0.37725655]
[1617710317284,0.44155024,58534.0,58533.0,0.37725655]
[1617710319582,0.94451503,58534.0,58533.0,0.37725655]
[1617710324588,0.94451503,58534.0,58533.0,3.92335655]
[1617710324989,0.94451503,58534.0,58533.0,0.37725655]
[1617710327091,2.80605655,58537.0,58533.0,0.37725655]
[1617710327593,0.945274,58534.0,58533.0,0.37725655]
[1617710336699,0.4424751,58534.0,58533.0,0.37725655]
[1617710341208,0.94550155,58534.0,58533.0,0.37725655]
[1617710342008,4.5719581,58534.0,58533.0,0.37725655]
[1617710342509,4.67244506,58534.0,58533.0,0.37725655]
[1617710343212,1.15324506,58534.0,58533.0,0.37725655]
[1617710343710,1.0527581,58534.0,58533.0,0.37725655]
[1617710345411,1.2136581,58534.0,58533.0,0.37725655]
[1617710345614,4.5112581,58534.0,58533.0,0.37725655]
[1617710346214,5.17404691,58534.0,58533.0,0.37725655]
[1617710346714,4.8611602,58534.0,58533.0,0.37725655]
[1617710348215,4.61047251,58534.0,58533.0,0.37725655]
[1617710348617,4.86111098,58534.0,58533.0,0.37725655]
[1617710349114,4.61047251,58534.0,58533.0,0.37725655]
[1617710350415,5.174585,58534.0,58533.0,0.37725655]
[1617710353820,1.876985,58534.0,58533.0,0.37725655]
[1617710354321,1.77777059,58534.0,58533.0,0.37725655]
[1617710355322,5.25537059,58534.0,58533.0,0.37725655]
[1617710355927,5.35527292,58534.0,58533.0,0.37725655]
[1617710356326,1.87767292,58534.0,58533.0,0.37725655]
[1617710356726,1.77777059,58534.0,58533.0,3.73255655]
[1617710358230,1.61687059,58534.0,58533.0,3.85833655]
[1617710358430,1.61687059,58534.0,58533.0,0.50303655]
[1617710358630,3.9767581,58534.0,58533.0,0.50303655]
[1617710359330,4.07508494,58534.0,58533.0,0.50303655]
[1617710359530,4.07508494,58534.0,58533.0,0.37725655]
[1617710359830,1.15108494,58534.0,58533.0,0.37725655]
[1617710360232,1.71519116,58534.0,58533.0,0.37725655]
[1617710360631,1.0527581,58534.0,58533.0,0.37725655]
[1617710362536,1.0527581,58534.0,58533.0,3.89915655]
[1617710363437,1.0527581,58534.0,58533.0,4.19828483]
[1617710365940,0.94550155,58534.0,58533.0,4.19828483]
[1617710366943,0.50302645,58534.0,58533.0,4.19828483]
[1617710368344,0.44315861,58534.0,58533.0,0.67638483]
[1617710368747,0.94673086,58534.0,58533.0,0.67638483]
[1617710369146,0.44315861,58534.0,58533.0,0.67638483]
[1617710371148,0.44315861,58534.0,58533.0,1.03544985]
[1617710373952,0.44315861,58534.0,58533.0,0.67638483]
[1617710374848,0.44315861,58534.0,58533.0,1.03532511]
[1617710378153,0.50347188,58536.0,58533.0,1.03532511]
[1617710378755,0.5034726,58537.0,58533.0,1.03532511]
[1617710379157,0.5034726,58537.0,58536.0,0.2988688]
[1617710379452,0.5034726,58537.0,58536.0,0.5688688]
[1617710380154,0.50328233,58538.0,58536.0,0.5688688]
[1617710380655,0.50328327,58537.0,58536.0,2.8701]
[1617710380854,0.50328327,58537.0,58536.0,2.6001]
[1617710381055,0.1281,58540.0,58536.0,2.89883266]
[1617710381056,0.50328205,58538.0,58536.0,2.89883266]
[1617710381256,0.50328205,58538.0,58536.0,3.16883266]
[1617710381956,0.5032796,58537.0,58536.0,2.8701]
[1617710382257,0.50327994,58538.0,58536.0,3.16886394]
[1617710382457,0.50327994,58538.0,58536.0,0.56876394]
[1617710382657,0.44289892,58537.0,58536.0,0.56876394]
[1617710383158,0.94618019,58537.0,58536.0,0.27]
[1617710383356,0.94618019,58537.0,58535.0,0.5688498]
[1617710383557,0.94618019,58537.0,58535.0,0.27]
[1617710383857,0.50328127,58537.0,58536.0,0.27]
[1617710384058,0.50328127,58537.0,58535.0,0.27]
[1617710384262,0.94607876,58537.0,58535.0,0.27]
[1617710384459,0.94607876,58537.0,58536.0,0.27]
[1617710384660,0.94607876,58537.0,58535.0,0.27]
[1617710384960,0.1281,58540.0,58535.0,0.29876347]
[1617710384961,0.44279632,58536.0,58535.0,0.29876347]
[1617710385261,0.44279632,58536.0,58535.0,0.56876347]
[1617710385461,0.44279632,58536.0,58535.0,0.27]
[1617710385661,0.44279632,58536.0,58535.0,0.56869383]
[1617710389864,0.44279632,58536.0,58535.0,0.92700931]
[1617710390866,0.44247164,58538.0,58535.0,0.92700931]
[1617710391267,0.44247164,58538.0,58537.0,0.29834434]
[1617710391566,0.44247164,58538.0,58537.0,0.56834434]
[1617710392667,0.54972819,58538.0,58537.0,0.56834434]
[1617710393169,0.54972819,58538.0,58537.0,0.27]
[1617710393569,0.54972819,58538.0,58536.0,0.27]
[1617710393969,0.54972819,58538.0,58537.0,0.27]
[1617710394170,0.10725655,58538.0,58534.0,0.27]
[1617710394471,0.10725655,58538.0,58537.0,0.27]
[1617710394870,0.10725655,58538.0,58534.0,0.27]
[1617710395071,0.54958756,58538.0,58537.0,0.27]
[1617710395472,0.44233284,58535.0,58534.0,0.27]
[1617710395671,0.44233284,58535.0,58533.0,0.10725655]
[1617710395971,0.44233284,58535.0,58534.0,0.27]
[1617710396373,0.10725655,58538.0,58534.0,0.27]
[1617710396773,0.44232624,58535.0,58534.0,0.56844828]
[1617710398276,0.44232624,58535.0,58534.0,0.27]
[1617710398875,0.10725655,58538.0,58534.0,0.56845182]
[1617710399376,0.44232048,58535.0,58534.0,0.27]
[1617710399576,0.44232048,58535.0,58534.0,0.56844829]
[1617710400276,0.44232048,58535.0,58534.0,0.27]
[1617710401479,0.44232048,58535.0,58534.0,0.56852242]
[1617710403283,0.44232048,58535.0,58534.0,0.27]
[1617710404183,1.44232048,58535.0,58534.0,0.27]
[1617710404484,1.94509382,58535.0,58534.0,0.27]
[1617710405886,2.14509382,58535.0,58534.0,0.27]
[1617710406086,2.64509382,58535.0,58534.0,0.27]
[1617710406288,4.20825606,58535.0,58526.0,0.27]
[1617710406589,0.10725655,58527.0,58525.0,0.03]
[1617710406789,1.21614655,58527.0,58525.0,0.03]
[1617710406988,0.94540073,58526.0,58521.0,0.24]
[1617710407288,1.94540073,58526.0,58519.0,0.27]
[1617710407491,1.442533,58522.0,58518.0,0.03]
[1617710407893,1.442533,58522.0,58520.0,0.27]
[1617710407894,0.442533,58522.0,58520.0,0.27]
[1617710408090,0.50286469,58523.0,58517.0,0.29948497]
[1617710408291,0.50286469,58523.0,58518.0,0.27]
[1617710408490,0.10725655,58527.0,58520.0,0.29932716]
[1617710408491,0.44251598,58521.0,58520.0,0.29932716]
[1617710408690,0.44251598,58521.0,58520.0,0.40658371]
[1617710408891,0.44251598,58521.0,58520.0,0.10725655]
[1617710409090,0.44251598,58521.0,58520.0,0.37725655]
[1617710409291,0.0509,58525.0,58520.0,1.09543442]
[1617710409292,0.44249307,58524.0,58520.0,1.09543442]
[1617710409591,0.44249307,58524.0,58521.0,0.06051998]
[1617710409791,0.44248575,58525.0,58523.0,0.29882566]
[1617710409990,0.44248575,58525.0,58524.0,0.27]
[1617710410196,0.44247329,58527.0,58524.0,0.27]
[1617710410492,0.44247329,58527.0,58526.0,0.29875907]
[1617710410695,0.49347329,58527.0,58526.0,0.40601562]
[1617710410894,0.44247329,58527.0,58526.0,0.40601562]
[1617710411093,0.10725655,58537.0,58526.0,0.40601562]
[1617710411094,0.44245554,58528.0,58526.0,0.40601562]
[1617710411298,0.44245554,58528.0,58526.0,0.67601562]
[1617710411492,0.50277668,58534.0,58526.0,0.73653185]
[1617710411493,0.4424583,58529.0,58526.0,0.73653185]
[1617710411995,0.0509,58528.0,58527.0,0.06051425]
[1617710412394,0.0509,58528.0,58527.0,0.35921529]
[1617710412594,0.44242642,58530.0,58527.0,0.62921529]
[1617710412894,0.4424207,58531.0,58527.0,0.98750657]
[1617710413294,0.44241823,58532.0,58530.0,0.29856999]
[1617710413696,0.44241823,58532.0,58531.0,0.56856133]
[1617710413999,0.44241823,58532.0,58531.0,0.29856133]
[1617710414200,0.44241592,58535.0,58531.0,0.71719396]
[1617710414499,0.44241592,58535.0,58531.0,0.92668353]
[1617710414698,0.44241592,58535.0,58534.0,0.10725655]
[1617710414901,0.44241592,58535.0,58534.0,0.21023655]
[1617710415101,0.44245794,58536.0,58534.0,0.5086085]
[1617710415299,0.44245794,58536.0,58534.0,0.7786085]
[1617710415603,0.44245931,58537.0,58534.0,1.13659062]
[1617710416101,0.1281,58540.0,58534.0,1.13659062]
[1617710416102,0.56071916,58535.0,58534.0,0.37725655]
[1617710416302,1.56071916,58535.0,58534.0,0.37725655]
[1617710416502,2.0643026,58535.0,58534.0,0.37725655]
[1617710416702,2.17155915,58535.0,58534.0,0.37725655]
[1617710417102,3.67155915,58535.0,58534.0,0.37725655]
[1617710417304,4.23562749,58535.0,58534.0,0.27]
[1617710417503,4.23562749,58535.0,58534.0,0.3206]
[1617710417705,4.37345864,58535.0,58534.0,0.0506]
[1617710417905,4.37345864,58535.0,58526.0,0.27]
[1617710418207,4.07859939,58535.0,58534.0,0.27]
[1617710418405,5.07859939,58535.0,58518.0,0.35124849]
[1617710418607,1.0,58527.0,58523.0,0.27]
[1617710418809,0.10725655,58524.0,58519.0,0.27]
[1617710419008,1.5,58523.0,58518.0,0.0514]
[1617710419209,1.0,58520.0,58518.0,0.0514]
[1617710419411,1.0,58520.0,58516.0,0.29997881]
[1617710419412,3.44702435,58520.0,58519.0,0.1066]
[1617710419612,3.64702435,58520.0,58519.0,0.0311]
[1617710419813,1.5113633,58519.0,58517.0,0.27]